bitfinex-derivatives/quotes_ETHF0:USTF0_20250217
["timestamp","ask_amount","ask_price","bid_price","bid_amount"]
[1739802277586,0.71715466,2809.4,2809.1,3.2078]
[1739802277787,0.71183,2809.3,2809.1,3.91966]
[1739802278094,0.71185,2809.2,2809.1,3.2078]
[1739802278284,0.71193,2808.9,2808.8,3.21313466]
[1739802278887,4.45897853,2808.9,2808.8,3.2078]
[1739802279290,3.74704853,2808.9,2808.5,3.91982]
[1739802279489,3.74704853,2808.9,2808.5,3.2078]
[1739802279684,3.74704853,2808.9,2808.7,0.71197]
[1739802280190,3.74704853,2808.9,2808.8,0.71195]
[1739802280387,13.89924853,2809.2,2809.0,0.7119]
[1739802280594,10.1522,2809.2,2808.8,3.2078]
[1739802280798,3.027,2809.2,2809.1,0.71188]
[1739802281089,19.736,2809.3,2809.2,0.71185]
[1739802281488,19.736,2809.3,2809.2,3.91965]
[1739802281696,0.00533466,2809.4,2809.3,0.71183]
[1739802282588,0.00533466,2809.4,2809.2,3.2078]
[1739802282890,0.00533466,2809.4,2809.3,0.71183]
[1739802283294,0.00533466,2809.4,2808.9,4.9876]
[1739802283495,0.00533466,2809.4,2809.3,0.71183]
[1739802283696,0.00533466,2809.4,2809.0,3.2078]
[1739802283992,3.026,2809.3,2808.6,3.2078]
[1739802284197,4.30283861,2809.1,2808.3,3.2078]
[1739802284398,0.71199,2808.7,2808.4,0.71204]
[1739802284691,1.77976,2809.0,2808.3,3.2078]
[1739802284889,1.77976,2809.0,2808.4,0.71204]
[1739802285085,4.30283861,2809.1,2808.3,3.2078]
[1739802285290,0.71196,2808.8,2808.6,0.71199]
[1739802285498,0.71196,2808.8,2808.6,0.71198]
[1739802285695,4.30283861,2809.1,2808.3,3.2078]
[1739802285886,0.71196,2808.8,2808.3,3.2078]
[1739802286094,0.71196,2808.8,2808.6,0.71199]
[1739802286388,0.71196,2808.8,2808.3,3.2078]
[1739802286594,0.71196,2808.8,2808.6,0.71198]
[1739802286888,0.71194,2808.9,2808.7,0.71197]
[1739802287092,0.71197,2808.8,2808.6,0.71199]
[1739802287894,0.71197,2808.8,2808.3,3.2078]
[1739802288199,6.08254861,2809.1,2808.0,14.2988]
[1739802288402,0.71204,2808.5,2808.0,14.2988]
[1739802288699,0.71204,2808.5,2808.4,0.71205]
[1739802288997,3.026,2808.8,2808.3,0.71206]
[1739802289198,0.71205,2808.4,2808.3,0.71206]
[1739802289599,0.71208,2808.4,2808.2,0.71209]
[1739802289802,0.71208,2808.4,2808.0,14.2988]
[1739802289993,3.026,2808.8,2808.0,14.2988]
[1739802290193,0.71204,2808.5,2808.0,14.2988]
[1739802290393,0.71204,2808.5,2808.3,0.71206]
[1739802290593,1.78021,2808.3,2807.3,3.2078]
[1739802290796,4.80627,2808.2,2807.3,3.2078]
[1739802291102,0.71224,2807.7,2807.5,0.71227]
[1739802291293,4.30283861,2808.0,2807.3,3.2078]
[1739802291598,0.71223,2807.7,2807.3,3.2078]
[1739802291794,0.71223,2807.7,2807.5,0.71227]
[1739802291993,0.71223,2807.7,2807.3,3.2078]
[1739802292190,0.71231,2807.4,2807.0,8.92019]
[1739802292389,0.71235,2807.3,2807.0,8.2078]
[1739802292694,0.71235,2807.3,2805.2,3.2078]
[1739802292695,4.30283861,2807.1,2805.2,3.2078]
[1739802292901,3.2078,2806.2,2805.5,3.2078]
[1739802293503,0.00534445,2806.4,2805.5,3.2078]
[1739802293701,0.00534445,2806.4,2806.2,0.71259]
[1739802293903,0.00534445,2806.4,2806.0,3.2078]
[1739802294200,0.00534445,2806.4,2806.3,0.71259]
[1739802295496,3.2078,2806.9,2806.5,0.71252]
[1739802295797,3.2078,2806.9,2806.5,0.71253]
[1739802296302,3.026,2807.0,2806.5,3.2078]
[1739802296599,3.026,2807.0,2806.6,0.71251]
[1739802296804,3.03134445,2807.0,2806.5,0.00534445]
[1739802297200,3.2078,2807.6,2806.7,3.2078]
[1739802297407,0.28979494,2808.0,2807.7,0.71222]
[1739802297697,14.06313861,2808.4,2807.4,3.2078]
[1739802297898,0.71211,2808.2,2807.6,0.71224]
[1739802298103,14.06313861,2808.4,2807.5,3.5702]
[1739802298295,3.2078,2808.1,2807.5,3.5702]
[1739802298498,3.91993,2808.1,2807.6,0.71224]
[1739802298705,3.2078,2808.1,2807.5,3.5702]
[1739802298904,0.00534445,2808.2,2807.8,0.7122]
[1739802299105,0.00534445,2808.2,2807.5,3.5702]
[1739802299405,0.00534445,2808.2,2807.9,0.71217]
[1739802299902,0.00534445,2808.2,2807.3,1.78083]
[1739802299903,7.51063861,2808.0,2806.8,3.2078]
[1739802300207,6.2338,2807.9,2806.8,3.2078]
[1739802300402,3.2078,2807.2,2806.6,3.5331]
[1739802300609,3.026,2807.4,2806.6,3.5331]
[1739802300800,7.0285,2807.5,2806.8,3.2078]
[1739802301001,3.2078,2807.5,2806.8,3.2078]
[1739802301410,3.2078,2807.5,2806.6,3.5331]
[1739802301704,0.71244,2806.9,2806.6,3.5331]
[1739802302104,10.53663861,2807.2,2806.6,3.5331]
[1739802302409,3.2078,2806.9,2806.5,0.00534445]
[1739802302707,0.71251,2806.6,2806.5,0.00534445]
[1739802303310,3.92031,2806.6,2806.5,0.00534445]
[1739802303808,13.3172,2806.6,2805.5,3.2078]
[1739802304016,0.71273,2805.8,2805.0,10.6873]
[1739802304214,3.2078,2805.9,2805.0,10.6873]
[1739802304516,3.2078,2805.5,2805.0,7.4795]
[1739802304906,4.30283861,2805.4,2804.5,3.2078]
[1739802305109,4.30283861,2805.4,2805.0,0.00534445]
[1739802306011,0.00534445,2805.5,2805.0,0.00534445]
[1739802306611,4.30818306,2805.5,2805.0,0.00534445]
[1739802306811,0.00534445,2805.5,2805.0,0.00534445]
[1739802307013,3.21314445,2805.5,2805.0,0.00534445]
[1739802307314,0.71282,2805.4,2805.0,0.00534445]
[1739802307516,3.21314445,2805.5,2805.0,0.00534445]
[1739802307714,0.71283,2805.4,2805.0,0.00534445]
[1739802307909,3.73883,2805.4,2805.0,0.00534445]
[1739802308214,0.00534445,2805.5,2805.0,0.00534445]
[1739802308414,4.30818306,2805.5,2805.0,0.00534445]
[1739802308607,5.02098306,2805.5,2805.0,0.00534445]
[1739802308802,7.51598306,2805.5,2805.0,0.00534445]
[1739802309015,5.01572861,2805.1,2805.0,0.00534445]
[1739802309213,8.22352861,2805.1,2805.0,0.00534445]
[1739802309409,7.51063861,2805.1,2805.0,0.00534445]
[1739802310216,11.25052861,2805.1,2805.0,0.00534445]
[1739802310410,4.30283861,2805.1,2805.0,0.00534445]
[1739802310717,3.2078,2805.4,2805.0,0.00534445]
[1739802310911,0.00534445,2805.5,2805.0,0.00534445]
[1739802311112,0.00534445,2805.5,2805.0,3.67084445]
[1739802311319,0.00534445,2805.5,2805.2,0.71286]
[1739802311612,0.00534445,2805.5,2805.3,0.71283]
[1739802311814,0.00534445,2805.5,2805.0,3.67084445]
[1739802312114,0.00534445,2805.5,2805.4,0.71282]
[1739802312506,0.00534445,2805.5,2805.4,3.92062]
[1739802313514,3.2078,2806.4,2806.1,0.71263]
[1739802313710,7.68663861,2806.6,2806.0,3.2078]
[1739802313921,8.39916861,2806.6,2806.0,3.92045]
[1739802314116,7.32983861,2806.6,2806.0,3.2078]
[1739802314322,3.027,2806.6,2805.8,3.2078]
[1739802314616,0.00534445,2806.5,2806.0,3.2078]
[1739802314918,0.00534445,2806.5,2806.2,0.7126]
[1739802315114,0.00534445,2806.5,2805.9,7.4536]
[1739802315418,3.92038,2806.4,2805.2,6.7605]
[1739802315723,3.03134445,2806.5,2805.5,3.2078]
[1739802316023,0.7126,2806.3,2805.6,0.71277]
[1739802316214,0.71265,2806.1,2805.5,3.92057]
[1739802316415,4.30283861,2806.2,2805.9,0.71268]
[1739802316610,3.74389445,2806.5,2805.5,3.2078]
[1739802316611,3.03134445,2806.5,2805.5,3.2078]
[1739802316821,3.03134445,2806.5,2806.3,0.71258]
[1739802317010,3.03134445,2806.5,2805.8,3.2078]
[1739802317323,3.03134445,2806.5,2806.3,0.71258]
[1739802317519,0.00534445,2806.5,2806.1,3.2078]
[1739802317714,0.00534445,2806.5,2806.4,0.71256]
[1739802318111,0.00534445,2806.5,2806.4,3.92036]
[1739802318412,0.00534445,2806.5,2806.4,3.2078]
[1739802318913,0.71263,2806.2,2805.6,0.71276]
[1739802319108,9.93874445,2806.5,2805.3,6.7948]
[1739802319309,0.71257,2806.4,2805.9,0.71268]
[1739802319519,0.71257,2806.4,2805.3,8.57691]
[1739802319520,10.65129445,2806.5,2805.6,3.2078]
[1739802319720,0.71263,2806.2,2805.6,3.2078]
[1739802319920,0.71263,2806.2,2805.8,0.7127]
[1739802320318,3.2078,2806.1,2805.3,3.587]
[1739802320842,3.2078,2806.4,2805.5,3.2078]
[1739802321022,0.00534445,2806.5,2805.5,3.2078]
[1739802321023,0.71788445,2806.5,2805.9,3.92047]
[1739802321226,0.00534445,2806.5,2805.9,3.2078]
[1739802321623,0.00534445,2806.5,2806.4,0.71256]
[1739802322223,0.00534445,2806.5,2806.2,3.2078]
[1739802322423,0.00534445,2806.5,2806.4,0.71256]
[1739802322624,0.00534445,2806.5,2806.3,0.71257]
[1739802322820,0.00534445,2806.5,2806.3,0.71258]
[1739802323027,0.00534445,2806.5,2806.1,3.7918]
[1739802323419,0.71257,2806.4,2806.1,3.7918]
[1739802323624,0.00534445,2806.5,2806.1,3.7918]
[1739802323825,0.00534445,2806.5,2806.3,0.71259]
[1739802324021,0.00534445,2806.5,2806.1,3.7918]
[1739802324423,0.00534445,2806.5,2806.4,0.71256]
[1739802324832,0.00534445,2806.5,2806.1,6.9996]
[1739802325228,0.71789445,2806.5,2806.1,4.50443]
[1739802325429,0.00534445,2806.5,2806.1,6.9996]
[1739802325625,0.00534445,2806.5,2806.3,0.71257]
[1739802325831,0.00534445,2806.5,2806.1,6.9996]
[1739802326534,0.00534445,2806.5,2806.4,0.71256]
[1739802326836,0.00534445,2806.5,2806.3,0.71502241]
[1739802327030,0.00534445,2806.5,2806.3,0.00246241]
[1739802327031,3.21314445,2806.5,2806.3,0.00246241]
[1739802327325,3.025,2806.4,2805.6,3.2078]
[1739802328030,3.025,2806.4,2805.2,3.7991]
[1739802328031,4.30283861,2806.2,2805.2,3.7991]
[1739802328230,3.2078,2805.9,2805.2,3.7991]
[1739802328428,7.51063861,2806.2,2805.2,3.7991]
[1739802329043,0.00534445,2806.5,2805.9,0.71268]
[1739802329328,7.51063861,2806.4,2805.6,3.2078]
[1739802329528,0.00534445,2806.5,2805.6,3.2078]
[1739802329730,0.00534445,2806.5,2805.9,3.2078]
[1739802329930,0.7126,2806.3,2805.7,3.7306]
[1739802330228,4.30283861,2806.4,2805.7,3.7306]
[1739802330435,0.71262,2806.2,2805.9,0.71268]
[1739802330633,4.30283861,2806.4,2805.7,3.7306]
[1739802330828,4.30283861,2806.4,2806.1,0.71262]
[1739802331034,4.30283861,2806.4,2805.7,3.7306]
[1739802331238,0.00534445,2806.5,2805.7,3.7306]
[1739802331534,0.00534445,2806.5,2806.3,0.71258]
[1739802332228,4.30283861,2806.4,2805.4,6.474]
[1739802332735,4.46900068,2806.2,2805.9,0.71268]
[1739802333134,4.46901068,2806.2,2805.9,0.71268]
[1739802333434,3.75638068,2806.2,2805.6,3.2078]
[1739802333627,6.96952513,2806.5,2805.6,3.2078]
[1739802333833,0.71261,2806.3,2806.0,0.71264]
[1739802334136,6.96952513,2806.5,2806.1,0.71264]
[1739802334320,0.71259,2806.3,2806.1,0.71264]
[1739802334526,0.71259,2806.4,2806.1,0.71264]
[1739802334733,7.68207513,2806.5,2805.7,1.78182]
[1739802334932,6.96952513,2806.5,2805.9,3.2078]
[1739802335123,3.75638068,2806.2,2805.6,3.2078]
[1739802335523,3.75638068,2806.2,2805.6,1.78192]
[1739802335733,3.75638068,2806.2,2806.1,0.71264]
[1739802336033,3.75638068,2806.2,2805.4,6.584]
[1739802336034,3.75638068,2806.2,2805.1,2.915]
[1739802336235,3.75638068,2805.9,2805.8,0.71271]
[1739802336430,6.78138068,2806.2,2805.3,3.2078]
[1739802336731,6.78138068,2806.2,2806.0,0.71265]
[1739802336936,0.71265,2806.1,2805.5,1.78198]
[1739802337139,6.78138068,2806.2,2806.0,0.71266]
[1739802337833,7.49399068,2806.2,2806.0,0.71266]
[1739802338034,7.49399068,2806.2,2805.5,1.78198]
[1739802338035,0.71272,2805.8,2805.5,0.71278]
[1739802338233,3.75638068,2805.9,2805.4,0.71282]
[1739802338429,3.75638068,2805.9,2805.2,3.5105]
[1739802338627,0.71275,2805.7,2805.4,0.7128]
[1739802339027,0.71275,2805.7,2805.2,3.5105]
[1739802339434,0.71275,2805.7,2805.5,0.71278]
[1739802339828,3.75638068,2805.9,2805.2,3.5105]
[1739802340034,3.75638068,2806.2,2806.0,0.71266]
[1739802341336,4.46900068,2806.2,2805.7,3.2078]
[1739802341541,3.75638068,2806.2,2806.0,0.71265]
[1739802342233,3.75638068,2806.2,2805.7,3.2078]
[1739802342440,4.46900068,2806.2,2806.0,0.71266]
[1739802342637,3.75638068,2806.2,2805.7,3.2078]
[1739802342840,4.46900068,2806.2,2805.7,3.2078]
[1739802343041,3.75638068,2806.2,2806.0,0.71265]
[1739802343243,3.75638068,2806.2,2805.7,3.2078]
[1739802343538,3.75638068,2806.4,2805.7,3.2078]
[1739802343934,0.71259,2806.3,2806.1,0.71262]
[1739802344535,3.75638068,2806.4,2805.7,3.2078]
[1739802344935,3.75638068,2806.4,2806.0,0.71266]
[1739802345136,0.71264,2806.1,2806.0,0.71266]
[1739802345443,0.7126,2806.3,2806.1,0.71263]
[1739802345743,0.71261,2806.2,2806.1,0.71263]
[1739802346342,0.71265,2806.1,2806.0,0.71266]
[1739802346536,0.00534445,2806.5,2805.9,3.024]
[1739802346737,6.96418068,2807.7,2806.7,0.71247]
[1739802346939,0.71237,2807.2,2806.9,0.71243]
[1739802347340,0.71236,2807.3,2806.6,1.78124]
[1739802347646,6.96418068,2807.4,2806.7,3.2078]
[1739802347840,0.00534445,2807.2,2807.1,3.2078]
[1739802348138,3.75638068,2807.8,2807.2,0.71234]
[1739802348343,4.46860068,2807.8,2807.1,3.2078]
[1739802348640,3.75638068,2808.0,2807.4,3.2078]
[1739802348842,4.46855068,2808.0,2807.6,0.71224]
[1739802349041,4.46855068,2808.0,2807.3,3.2078]
[1739802349042,3.75638068,2808.0,2807.3,3.2078]
[1739802349240,3.75638068,2807.7,2807.3,3.2078]
[1739802349436,0.71229,2807.5,2807.3,3.2078]
[1739802349636,3.75638068,2807.7,2807.3,3.2078]
[1739802349843,0.00534445,2808.1,2807.3,3.2078]
[1739802350036,0.00534445,2808.1,2807.8,0.7122]
[1739802350340,3.76172513,2808.1,2807.6,3.2078]
[1739802350546,3.76172513,2808.1,2807.2,3.2078]
[1739802350848,3.76172513,2808.1,2807.8,0.7122]
[1739802351147,3.76172513,2808.1,2807.5,3.2078]
[1739802351148,0.00534445,2808.1,2807.5,3.2078]
[1739802351839,3.76172513,2808.1,2807.6,0.71224]
[1739802352037,3.76172513,2808.1,2807.5,3.2078]
[1739802352038,0.00534445,2808.1,2807.5,3.2078]
[1739802352237,0.7122,2807.9,2807.5,3.2078]
[1739802352543,3.21314445,2808.1,2807.5,3.2078]
[1739802352846,0.71221,2807.8,2807.5,3.2078]
[1739802353041,3.2078,2807.7,2807.1,7.0832]
[1739802353347,6.96418068,2807.5,2807.1,3.2078]
[1739802353643,0.7124,2807.1,2806.5,7.73142]
[1739802353944,0.71246,2806.8,2806.1,3.6104]
[1739802354252,3.92026,2806.8,2806.0,0.71265]
[1739802354543,7.79566,2806.8,2805.9,0.71267]
[1739802354746,12.46374256,2806.8,2805.8,10.0409]
[1739802355046,12.46374256,2806.8,2806.0,0.71265]
[1739802355247,1.78085,2807.3,2806.4,3.2078]
[1739802355248,3.2078,2807.3,2806.4,3.2078]
[1739802355444,3.641,2807.4,2807.1,0.71237]
[1739802355745,10.59505,2807.7,2806.8,3.7653]
[1739802356048,6.2298,2807.7,2807.3,0.71232]
[1739802356249,3.2078,2807.7,2806.9,3.022]
[1739802356440,3.2078,2807.7,2807.3,0.71232]
[1739802356744,3.2078,2807.7,2807.0,3.2078]
[1739802357045,3.92004,2807.7,2807.2,0.71235]
[1739802357243,3.92004,2807.7,2807.3,0.71232]
[1739802357548,3.7376,2807.9,2807.5,0.71227]
[1739802358345,3.7376,2807.9,2807.0,3.2078]
[1739802358540,19.75,2808.0,2807.3,3.2078]
[1739802358742,19.75,2808.0,2807.1,1.78097]
[1739802358743,19.75,2808.0,2807.9,0.71218]
[1739802358949,0.00534445,2808.1,2807.7,3.2078]
[1739802359250,0.00534445,2808.1,2807.9,0.71216]
[1739802359541,0.00534445,2808.1,2807.7,3.2078]
[1739802360146,0.00534445,2808.1,2807.8,0.7122]
[1739802360448,0.00534445,2808.1,2807.9,0.71217]
[1739802361646,3.5689,2807.9,2807.1,6.9697]
[1739802361847,0.71226,2807.6,2807.3,0.71232]
[1739802362149,6.2288,2808.0,2807.1,6.9697]
[1739802362350,0.71219,2807.9,2807.6,0.71226]
[1739802362943,6.2288,2808.0,2807.3,0.71232]
[1739802363251,3.2078,2807.5,2806.9,3.021]
[1739802363442,3.021,2808.0,2806.8,0.71246]
[1739802363443,0.7124,2807.1,2806.8,0.71246]
[1739802363649,3.2078,2807.2,2807.0,0.7124]
[1739802364039,3.2078,2807.2,2806.7,6.67584445]
[1739802364240,3.2078,2807.5,2806.8,3.2078]
[1739802364843,0.71227,2807.6,2806.8,6.2278]
[1739802365243,0.71227,2807.6,2807.2,0.71234]
[1739802365448,3.2078,2807.4,2806.8,3.2078]
[1739802365647,3.2078,2807.4,2807.1,0.71237]
[1739802365846,3.2078,2807.4,2807.3,0.71233]
[1739802366047,3.92013,2807.4,2807.1,0.71238]
[1739802366243,3.2078,2807.4,2806.8,3.2078]
[1739802366450,0.71244,2806.9,2806.7,3.76084445]
[1739802366652,3.2078,2807.1,2806.7,3.76084445]
[1739802366852,3.8006,2807.3,2806.7,3.76084445]
[1739802367049,0.71246,2806.8,2806.7,0.00534445]
[1739802367348,3.92026,2806.8,2806.7,0.00534445]
[1739802367543,6.94026,2806.8,2806.7,0.00534445]
[1739802367739,1.78127,2806.7,2805.9,3.5006]
[1739802367943,0.71262,2806.2,2805.9,3.5006]
[1739802368146,0.71261,2806.3,2805.9,3.5006]
[1739802368344,3.2078,2806.5,2805.9,3.5006]
[1739802368544,0.71261,2806.3,2805.9,4.21329]
[1739802368942,0.71262,2806.2,2805.9,3.5006]
[1739802369954,0.71266,2806.1,2805.8,0.71804445]
[1739802370651,3.92043,2806.2,2805.8,0.00534445]
[1739802370852,3.2078,2806.2,2806.0,0.71265]
[1739802371352,3.2078,2806.2,2806.0,0.71264]
[1739802371547,3.2078,2806.2,2805.8,0.00534445]
[1739802372056,0.71792445,2806.4,2805.8,0.00534445]
[1739802372251,0.00534445,2806.4,2805.8,0.00534445]
[1739802372652,0.71264,2806.1,2805.8,0.00534445]
[1739802372847,0.71264,2806.1,2805.8,0.71805445]
[1739802373048,0.71264,2806.1,2805.8,0.00534445]
[1739802373247,0.71267,2806.0,2805.8,0.00534445]
[1739802373451,0.71269,2805.9,2805.8,0.00534445]
[1739802374152,3.92049,2805.9,2805.8,0.00534445]
[1739802374744,3.5646,2805.9,2805.8,0.00534445]
[1739802374947,3.92049,2805.9,2805.8,0.00534445]
[1739802375456,3.2078,2805.9,2805.8,0.00534445]
[1739802375654,3.2078,2805.9,2805.8,0.71805445]
[1739802376357,3.02,2806.1,2805.9,0.71267]
[1739802376648,3.02,2806.1,2805.8,0.00534445]
[1739802377051,3.02,2806.1,2806.0,0.71266]
[1739802377259,3.73264,2806.1,2805.9,0.71267]
[1739802377552,3.2078,2806.3,2806.2,0.71261]
[1739802378749,3.2078,2806.3,2805.8,3.21314445]
[1739802378956,0.71265,2806.1,2805.9,0.71268]
[1739802379153,3.2078,2806.3,2805.8,3.21314445]
[1739802379954,0.71263,2806.2,2805.9,0.71267]
[1739802380258,0.71263,2806.2,2806.0,0.71266]
[1739802380452,0.71263,2806.2,2805.8,3.21314445]
[1739802380654,0.71263,2806.2,2806.0,0.71264]
[1739802380852,0.71269,2805.9,2805.8,0.00534445]
[1739802381161,1.78187,2805.7,2805.1,3.6364]
[1739802381457,0.71297,2804.8,2804.7,3.7432]
[1739802381675,3.2078,2805.3,2804.7,3.7432]
[1739802381970,3.92066,2805.3,2804.7,3.7432]
[1739802382172,0.71291,2805.1,2804.8,0.71297]
[1739802382471,3.7557936,2805.0,2804.7,0.00534445]
[1739802383174,0.71297,2804.8,2804.7,0.00534445]
[1739802383467,3.73197,2804.8,2804.7,0.00534445]
[1739802383969,3.019,2804.8,2804.7,0.00534445]
[1739802384275,3.7557936,2805.0,2804.9,0.71294]
[1739802384464,3.2078,2805.2,2804.7,0.00534445]
[1739802384773,3.7557936,2805.0,2804.7,0.00534445]
[1739802385265,3.7557936,2805.0,2804.9,0.71294]
[1739802385463,3.7557936,2805.0,2804.7,0.00534445]
[1739802385775,3.2078,2804.8,2804.7,0.00534445]
[1739802386067,3.7557936,2805.0,2804.7,0.00534445]
[1739802386068,3.7557936,2805.0,2804.7,0.71832445]
[1739802386569,3.7557936,2805.0,2804.8,0.71296]
[1739802386766,3.7557936,2805.0,2804.7,0.00534445]
[1739802387172,4.4687136,2805.0,2804.7,0.00534445]
[1739802387569,0.71297,2804.8,2804.7,0.00534445]
[1739802387974,3.7557936,2805.0,2804.7,0.00534445]
[1739802388171,0.71297,2804.8,2804.7,0.00534445]
[1739802388569,3.92077,2804.8,2804.7,0.00534445]
[1739802388771,7.5616936,2805.0,2804.7,0.00534445]
[1739802389066,3.92077,2804.8,2804.7,0.00534445]
[1739802389471,0.71297,2804.8,2804.7,0.00534445]
[1739802389672,3.92077,2804.8,2804.7,0.00534445]
[1739802390476,9.9825936,2804.8,2804.1,3.7273]
[1739802390771,3.7557936,2804.3,2804.2,0.71312]
[1739802390976,3.7557936,2804.3,2803.9,3.2078]
[1739802391369,3.7557936,2804.0,2803.9,3.2078]
[1739802391974,0.00534445,2804.2,2803.9,3.2078]
[1739802392278,0.00534445,2804.2,2804.1,0.71315]
[1739802392777,0.00534445,2804.2,2803.9,3.92098]
[1739802393079,0.00534445,2804.2,2804.1,0.71315]
[1739802393379,0.71847445,2804.2,2803.9,3.92098]
[1739802393575,0.00534445,2804.2,2804.0,0.71317]
[1739802393769,0.00534445,2804.2,2804.1,0.71315]
[1739802394374,0.00534445,2804.2,2803.9,3.2078]
[1739802395170,0.71846445,2804.2,2804.0,0.71316]
[1739802395477,3.76113805,2804.2,2803.9,3.2078]
[1739802395771,0.71316,2804.1,2803.9,3.2078]
[1739802396073,3.76113805,2804.2,2803.9,3.2078]
[1739802396275,3.76113805,2804.2,2804.1,0.71315]
[1739802396477,3.76113805,2804.2,2803.9,3.2078]
[1739802396769,3.76113805,2804.2,2804.1,0.71315]
[1739802397169,3.76113805,2804.2,2803.9,3.2078]
[1739802397369,0.00534445,2804.2,2804.1,0.71315]
[1739802397776,0.00534445,2804.2,2803.9,3.2078]
[1739802398076,0.00534445,2804.2,2804.1,0.71315]
[1739802399075,0.71316,2804.1,2803.7,3.69874445]
[1739802399276,0.00534445,2804.2,2803.7,3.69874445]
[1739802399471,0.00534445,2804.2,2804.1,0.71315]
[1739802401879,3.2078,2805.0,2804.9,0.71294]
[1739802402079,0.3568,2805.2,2804.9,0.71293]
[1739802402374,4.4686936,2805.1,2804.4,10.6282]
[1739802402571,4.4686936,2805.1,2804.9,0.71293]
[1739802402771,3.7557936,2805.1,2805.0,0.71292]
[1739802403174,0.36214445,2805.3,2805.0,0.71292]
[1739802403374,0.00534445,2805.3,2805.2,0.71287]
[1739802403982,0.00534445,2805.3,2805.2,3.92067]
[1739802404882,0.00534445,2805.3,2805.2,7.51037]
[1739802405882,0.00534445,2805.3,2805.2,3.5897]
[1739802406077,0.00534445,2805.3,2804.5,3.2078]
[1739802406283,4.4686836,2805.2,2804.5,3.2078]
[1739802406481,4.4686836,2805.2,2804.8,0.71295]
[1739802406670,4.4686736,2805.2,2804.9,0.71294]
[1739802407183,3.7557936,2805.2,2805.1,0.71289]
[1739802407377,0.00534445,2805.3,2804.8,3.2078]
[1739802407577,0.00534445,2805.3,2805.2,0.71287]
[1739802408379,0.00534445,2805.3,2805.0,3.649]
[1739802408779,0.00534445,2805.3,2804.9,7.3602]
[1739802408780,3.7557936,2805.2,2804.9,3.7103]
[1739802409083,0.7129,2805.1,2804.9,3.7103]
[1739802409583,4.4686736,2805.2,2804.9,3.7103]
[1739802409782,4.4686736,2805.2,2804.9,4.42323]
[1739802409984,3.7557936,2805.2,2804.9,3.7103]
[1739802410285,4.4686836,2805.2,2804.9,0.71293]
[1739802410478,3.7557936,2805.2,2804.5,3.2078]
[1739802410679,0.00534445,2805.3,2804.6,1.78256]
[1739802410882,0.00534445,2805.3,2804.5,3.2078]
[1739802411190,0.00534445,2805.3,2805.2,0.71287]
[1739802411683,0.71820445,2805.3,2804.8,0.71296]
[1739802411885,0.00534445,2805.3,2804.5,3.2078]
[1739802412083,0.00534445,2805.3,2804.9,0.71293]
[1739802412386,0.7129,2805.1,2804.8,0.71296]
[1739802412586,0.7129,2805.1,2804.9,0.71294]
[1739802412782,3.7557936,2805.2,2804.8,3.92075]
[1739802412980,0.71292,2805.0,2804.8,3.2078]
[1739802413183,0.71293,2805.0,2804.7,0.71298]
[1739802413389,0.71293,2805.0,2804.5,3.2078]
[1739802413880,0.71293,2805.0,2804.8,0.71295]
[1739802414188,0.71293,2805.0,2804.5,3.2078]
[1739802414387,0.71293,2805.0,2804.8,0.71296]
[1739802414583,3.7557936,2804.9,2804.5,3.2078]
[1739802414792,3.7557936,2804.6,2804.2,3.649]
[1739802415091,3.7557936,2804.6,2804.1,3.2078]
[1739802415092,3.7557936,2804.6,2804.1,3.92094]
[1739802415287,0.71309,2804.4,2804.1,3.2078]
[1739802415591,6.9635936,2804.9,2804.2,1.78281]
[1739802415781,7.6765636,2804.9,2804.6,0.71301]
[1739802415989,0.71299,2804.7,2804.5,0.71303]
[1739802416382,6.9635936,2804.9,2804.7,0.71298]
[1739802416583,3.7557936,2804.9,2804.7,0.71298]
[1739802416785,3.7557936,2804.9,2804.8,0.71297]
[1739802417088,0.71299,2804.8,2804.4,3.2078]
[1739802417288,3.7557936,2804.9,2804.5,0.71303]
[1739802417486,0.71298,2804.8,2804.4,3.2078]
[1739802417682,3.7557936,2804.9,2804.4,3.2078]
[1739802417888,7.4856636,2805.2,2805.0,0.71291]
[1739802418082,3.7557936,2805.2,2804.6,1.78256]
[1739802418491,3.21314445,2805.3,2804.7,1.78249]
[1739802418792,3.21314445,2805.3,2804.7,3.2078]
[1739802418991,0.71289,2805.1,2804.9,0.71293]
[1739802419192,3.21314445,2805.3,2804.7,3.2078]
[1739802419395,0.00534445,2805.3,2804.7,3.2078]
[1739802419783,0.71288,2805.2,2804.7,3.2078]
[1739802419986,0.71291,2805.1,2804.8,0.71295]
[1739802420193,0.71299,2804.7,2804.5,7.2649]
[1739802420492,0.71307,2804.4,2804.1,3.92093]
[1739802420791,0.71307,2804.4,2803.6,1.78314]
[1739802420792,3.7557936,2804.6,2803.8,14.0322]
[1739802420998,0.71309,2804.4,2804.1,0.71314]
[1739802421196,3.7557936,2804.6,2803.8,14.0322]
[1739802421598,3.7557936,2804.6,2803.9,1.783]
[1739802421798,3.7435,2804.8,2803.9,1.783]
[1739802421997,3.7557936,2804.9,2804.2,1.78279]
[1739802422199,3.2078,2805.0,2804.1,3.2078]
[1739802422397,3.016,2805.1,2804.5,1.78259]
[1739802422594,3.016,2805.1,2805.0,0.71292]
[1739802422893,3.016,2805.1,2804.6,12.68052]
[1739802422894,0.00534445,2805.3,2804.7,3.2078]
[1739802423100,0.00534445,2805.3,2805.1,0.71289]
[1739802423400,0.00534445,2805.3,2804.7,3.2078]
[1739802424491,0.00534445,2805.3,2805.2,0.71287]
[1739802425296,3.015,2806.0,2805.0,3.2078]
[1739802425499,3.7557936,2805.8,2805.0,3.2078]
[1739802425800,0.7128,2805.5,2805.0,3.2078]
[1739802426099,3.7557936,2805.5,2804.7,3.2078]
[1739802426300,4.4685936,2805.5,2804.8,1.78243]
[1739802426601,0.00534445,2805.4,2805.3,0.71284]
[1739802427005,0.00534445,2805.4,2805.0,3.2078]
[1739802427203,0.00534445,2805.4,2804.8,0.00534445]